bitfinex-derivatives/quotes_ETHF0:USTF0_20251024
["timestamp","ask_amount","ask_price","bid_price","bid_amount"]
[1761327700309,0.328,3900.5,3900.4,1.26164]
[1761327700507,0.1282,3901.0,3900.7,0.4482]
[1761327700805,0.789,3901.3,3901.2,0.8002]
[1761327701208,0.789,3901.3,3901.2,0.4482]
[1761327708612,0.789,3901.3,3901.2,0.2286]
[1761327710220,0.789,3901.3,3901.2,0.68994]
[1761327710716,0.789,3901.3,3901.2,0.2286]
[1761327713521,0.9223,3901.0,3900.9,0.46137]
[1761327714019,0.9223,3901.0,3900.9,0.68997]
[1761327716916,0.9223,3901.0,3900.9,0.2286]
[1761327719316,0.9223,3901.0,3900.9,0.68998]
[1761327719512,0.9223,3901.0,3900.9,1.01918]
[1761327720419,0.9223,3901.0,3900.9,0.2286]
[1761327720822,0.9223,3901.0,3900.9,1.23718]
[1761327725613,3.6568,3901.4,3901.3,1.22133]
[1761327725823,0.2277,3901.9,3901.8,1.22127]
[1761327726123,0.5483,3901.9,3901.8,1.22127]
[1761327726328,3.2078,3902.3,3902.2,1.22122]
[1761327726329,0.5483,3902.3,3902.2,1.22122]
[1761327726914,0.3230822,3902.7,3902.6,0.46118]
[1761327727118,0.3230822,3902.7,3902.6,1.22118]
[1761327727328,0.5507822,3902.7,3902.6,1.22118]
[1761327728217,0.7720822,3902.7,3902.6,0.2128]
[1761327728421,0.7720822,3902.7,3902.6,9.2868]
[1761327729129,0.7720822,3902.7,3902.6,9.5156]
[1761327729312,0.7720822,3902.7,3902.6,9.8465]
[1761327729822,0.7720822,3902.7,3902.6,10.30768]
[1761327730425,0.5507822,3902.7,3902.6,10.30768]
[1761327730623,0.5507822,3902.7,3902.6,9.8465]
[1761327730926,0.7805822,3902.7,3902.6,9.5156]
[1761327731721,0.7805822,3902.7,3902.6,9.8465]
[1761327732027,0.7805822,3902.7,3902.6,0.7725]
[1761327732615,0.7805822,3902.7,3902.6,0.2128]
[1761327732822,0.7838,3902.3,3902.2,0.459]
[1761327733124,0.5936,3902.0,3901.9,0.69146]
[1761327733323,0.9212,3902.0,3901.9,1.25116]
[1761327733526,0.9212,3902.0,3901.9,0.7899]
[1761327734523,0.9212,3902.0,3901.9,0.2302]
[1761327734828,0.9212,3902.0,3901.2,0.69154]
[1761327734829,0.4562,3901.3,3901.2,0.69154]
[1761327735026,0.3276,3901.2,3900.9,0.2302]
[1761327735233,0.3276,3901.2,3900.6,3.5387]
[1761327735234,0.7838,3901.1,3901.0,9.3012]
[1761327736025,0.7838,3901.1,3901.0,0.2302]
[1761327737126,0.4562,3900.8,3900.7,0.4614]
[1761327737333,0.7838,3900.8,3900.7,9.53]
[1761327737629,0.7838,3900.8,3900.7,9.8609]
[1761327737926,0.7838,3900.8,3900.7,0.2302]
[1761327738819,0.7838,3900.8,3900.7,0.7899]
[1761327739424,0.3276,3901.0,3900.9,0.46138]
[1761327739728,0.3276,3901.0,3900.9,1.25128]
[1761327741536,0.7838,3901.4,3901.3,0.2302]
[1761327741832,0.7838,3901.4,3901.3,0.459]
[1761327743235,0.7838,3901.4,3901.3,0.2302]
[1761327744132,0.554,3901.4,3901.3,1.25123]
[1761327745233,0.554,3901.4,3901.3,0.7899]
[1761327745629,0.554,3901.4,3901.3,1.25123]
[1761327746438,0.554,3901.4,3901.3,0.7899]
[1761327746739,0.7838,3901.4,3901.3,0.7899]
[1761327749135,0.7838,3901.4,3901.3,0.459]
[1761327751438,0.7838,3901.1,3901.0,0.2302]
[1761327753344,0.81900923,3901.1,3901.0,0.2302]
[1761327753542,0.9838,3901.1,3901.0,0.2302]
[1761327755743,4.1916,3901.1,3901.0,0.2302]
[1761327755944,0.4562,3900.3,3900.2,9.76165]
[1761327756141,0.7838,3900.3,3900.2,9.76165]
[1761327756335,0.554,3900.3,3900.2,10.32135]
[1761327756642,0.754,3900.3,3900.2,10.32135]
[1761327758146,0.754,3900.3,3900.2,1.25135]
[1761327758343,0.754,3900.3,3900.2,10.32135]
[1761327758542,0.754,3900.3,3900.2,1.25135]
[1761327759044,0.754,3900.3,3900.2,10.32135]
[1761327759245,0.754,3900.3,3900.2,1.25135]
[1761327759641,0.7772,3900.1,3900.0,0.00303096]
[1761327760039,0.7772,3900.1,3900.0,0.22133096]
[1761327760441,0.81240923,3900.1,3900.0,0.22133096]
[1761327760642,0.9772,3900.1,3900.0,0.22133096]
[1761327760839,0.9772,3900.1,3900.0,0.00303096]
[1761327761044,4.185,3900.1,3900.0,0.00303096]
[1761327790178,5.10638761,3900.1,3900.0,0.00303096]
[1761327795577,4.185,3900.1,3900.0,0.00303096]
[1761327796875,4.185,3900.1,3899.6,2.19256142]
[1761327796876,0.4722,3900.0,3899.6,2.19256142]
[1761327797081,4.0057,3899.7,3899.6,2.19256142]
[1761327797480,4.04090923,3899.7,3899.6,2.19256142]
[1761327797669,4.2057,3899.7,3899.6,2.19256142]
[1761327797874,4.20866644,3899.7,3899.6,1.51190342]
[1761327798379,14.31664786,3899.7,3898.7,1.37470933]
[1761327798678,14.31664786,3899.7,3898.7,0.46164]
[1761327798679,0.7979,3898.8,3898.7,0.46164]
[1761327798979,0.7979,3898.8,3898.7,0.68054]
[1761327799478,0.7979,3898.8,3898.7,0.68311675]
[1761327799678,0.83310923,3898.8,3898.7,0.68311675]
[1761327799880,0.9979,3898.8,3898.7,0.00257675]
[1761327800879,0.9979,3898.8,3898.7,0.68311675]
[1761327802191,0.9979,3898.8,3898.7,0.00257675]
[1761327805189,0.7979,3897.8,3897.7,0.2189]
[1761327805682,0.83310923,3897.8,3897.7,0.2189]
[1761327805881,0.9979,3897.8,3897.7,0.2189]
[1761327806082,0.9979,3897.8,3897.7,0.22112165]
[1761327806592,0.9979,3897.8,3897.7,0.68288165]
[1761327807587,0.9979,3897.8,3897.7,0.90798165]
[1761327808873,0.9979,3897.8,3897.7,0.44622165]
[1761327809078,4.2057,3897.8,3897.7,0.44622165]
[1761327809986,4.2057,3897.8,3897.7,0.22112165]
[1761327810488,4.2057,3897.8,3897.7,0.00222165]
[1761327818695,4.2057,3897.8,3896.9,0.3478]
[1761327818696,0.9493,3897.0,3896.9,0.7877]
[1761327818893,0.4627,3896.7,3896.6,0.5721]
[1761327819091,0.8079,3896.7,3896.6,0.68619]
[1761327819794,1.0111127,3896.7,3896.6,0.22625376]
[1761327819994,1.0111127,3896.7,3896.6,0.78965376]
[1761327820996,1.0111127,3896.7,3896.6,1.25154376]
[1761327821794,0.5484127,3896.7,3896.6,1.25154376]
[1761327822198,0.7806127,3896.7,3896.6,1.25154376]
[1761327822501,1.0111127,3896.7,3896.6,1.25154376]
[1761327823195,0.2032127,3896.7,3896.6,6.25154376]
[1761327823405,3.7852,3897.3,3897.2,0.7877]
[1761327823593,3.7852,3897.3,3897.2,1.24951]
[1761327824200,4.0157,3897.3,3897.2,1.24951]
[1761327824388,4.01752467,3897.3,3897.2,1.24951]
[1761327826201,4.01752467,3897.3,3897.2,0.90171]
[1761327826401,4.01752467,3897.3,3897.2,0.2243]
[1761327826891,3.67232467,3897.3,3897.0,0.2243]
[1761327827085,3.67232467,3897.3,3897.0,0.68614]
[1761327827086,0.8079,3897.1,3897.0,0.68614]
[1761327827900,0.8079,3897.1,3897.0,1.24954]
[1761327828301,0.8079,3897.1,3897.0,0.4399]
[1761327828605,0.8079,3896.8,3896.7,1.24957]
[1761327828801,0.8079,3896.8,3896.7,0.4399]
[1761327828993,0.3452,3896.7,3896.6,0.46384376]
[1761327829192,0.8079,3896.7,3896.6,0.68814376]
[1761327830200,0.8079,3896.7,3896.6,1.25154376]
[1761327831499,0.5774,3896.7,3896.6,1.25154376]
[1761327834006,0.8079,3896.7,3896.6,1.25154376]
[1761327834506,0.5774,3896.7,3896.6,1.25154376]
[1761327837500,0.8079,3896.7,3896.6,1.25154376]
[1761327837997,0.8079,3896.7,3896.6,0.44185376]
[1761327838204,0.8079,3896.7,3896.6,0.22625376]
[1761327838408,0.8079,3896.7,3896.6,0.68814376]
[1761327839806,0.8079,3896.7,3896.6,1.23864376]
[1761327842705,3.43802467,3897.3,3897.2,0.46182]
[1761327842905,3.43802467,3897.3,3897.2,1.23832]
[1761327843406,3.76032467,3897.3,3897.2,1.23832]
[1761327844011,0.55252467,3897.3,3897.2,1.23832]
[1761327845611,0.32412467,3897.3,3897.2,1.23832]
[1761327846008,0.78532467,3897.3,3897.2,0.7765]
[1761327846212,0.78532467,3897.3,3897.2,0.4427]
[1761327846714,0.78532467,3897.3,3897.2,0.90451]
[1761327847912,0.78532467,3897.3,3897.2,0.4427]
[1761327849104,0.78532467,3897.3,3897.2,0.90451]
[1761327850307,0.00182467,3897.3,3897.2,1.23881]
[1761327850512,3.7859,3898.1,3898.0,1.23962]
[1761327850716,0.3452,3898.1,3898.0,1.23962]
[1761327850918,0.5781,3898.7,3898.6,0.7779]
[1761327851302,0.5781,3898.9,3898.8,1.23952]
[1761327851511,0.34713716,3898.9,3898.8,1.23952]
[1761327851814,0.58003716,3898.9,3898.8,1.23952]
[1761327852007,0.80503716,3898.9,3898.8,0.7779]
[1761327852210,0.9334,3898.5,3898.4,0.4436]
[1761327852614,0.3452,3898.5,3898.4,0.7779]
[1761327853316,0.5781,3898.5,3898.4,0.7779]
[1761327854213,0.23483716,3898.9,3898.8,0.7779]
[1761327854715,0.34713716,3898.9,3898.8,0.7779]
[1761327855116,0.58003716,3898.9,3898.8,0.7779]
[1761327856317,0.80503716,3898.9,3898.8,0.7779]
[1761327856819,0.80503716,3898.9,3898.8,0.4436]
[1761327858113,0.80503716,3898.9,3898.8,0.90523]
[1761327858314,0.80503716,3898.9,3898.8,0.4436]
[1761327858619,0.80503716,3898.9,3898.8,1.23953]
[1761327863130,0.58003716,3898.9,3898.8,1.23953]
[1761327863725,0.34713716,3898.9,3898.8,1.23953]
[1761327864226,0.00193716,3898.9,3898.8,1.23953]
[1761327866029,0.00193716,3898.9,3898.8,4.44733]
[1761327869031,0.80503716,3898.9,3898.8,13.51233]
[1761327869221,0.58003716,3898.9,3898.8,13.51233]
[1761327870432,0.80503716,3898.9,3898.8,4.44733]
[1761327870631,0.58003716,3898.9,3898.8,4.44733]
[1761327873223,3.81248,3899.3,3898.8,4.44733]
[1761327873224,0.50436356,3899.3,3899.2,1.02278]
[1761327873430,0.84956356,3899.3,3899.2,1.23948]
[1761327873634,1.08246356,3899.3,3899.2,1.23948]
[1761327874341,1.08555676,3899.3,3899.2,1.23948]
[1761327878936,0.7732,3898.8,3898.7,0.2317]
[1761327879134,0.7732,3898.8,3898.3,4.57740399]
[1761327879135,0.3256,3898.4,3898.3,3.2078]
[1761327879334,0.9087,3898.0,3897.9,2.1810713]
[1761327879638,0.9087,3898.0,3897.9,0.92173]
[1761327879829,0.9087,3898.0,3897.9,1.26383]
[1761327881345,0.9087,3898.0,3897.9,2.18111916]
[1761327881545,0.9087,3898.0,3897.9,1.26383]
[1761327882544,0.9087,3898.0,3897.9,2.18111916]
[1761327883243,0.9087,3898.0,3897.9,1.26383]
[1761327884545,0.9087,3898.0,3897.9,0.92173]
[1761327885148,0.9087,3898.0,3897.9,9.98473]
[1761327885751,0.9087,3898.0,3897.9,0.92173]
[1761327886353,0.9087,3898.0,3897.9,1.26383]
[1761327886548,0.7732,3898.0,3897.9,1.26383]
[1761327886751,0.7732,3898.4,3898.3,1.26378]
[1761327887053,0.7732,3898.4,3898.3,0.46]
[1761327887248,0.4476,3898.4,3898.1,0.6934]
[1761327887448,0.7732,3898.2,3898.1,0.2317]
[1761327888042,0.9087,3898.0,3897.9,0.69342]
[1761327892951,0.9087,3898.0,3897.7,0.3421]
[1761327892952,0.2301,3897.5,3897.4,3.4395]
[1761327893160,0.9087,3897.5,3897.4,9.523]
[1761327893458,0.9087,3897.5,3897.4,10.32689]
[1761327894654,0.3256,3897.5,3897.4,10.32689]
[1761327894852,0.3256,3897.9,3897.7,0.46175]
[1761327895054,0.7732,3897.9,3897.8,1.26385]
[1761327895255,0.5557,3897.9,3897.8,1.26385]
[1761327895754,0.7732,3897.9,3897.8,1.26385]
[1761327895961,0.7732,3897.9,3897.8,0.46]
[1761327896559,0.7732,3897.9,3897.8,0.92175]
[1761327897862,0.7732,3897.9,3897.8,1.25825]
[1761327901064,0.3256,3897.9,3897.8,1.25825]
[1761327901269,0.793,3898.7,3898.6,0.4486]
[1761327901868,0.4637,3898.4,3898.3,0.5634]
[1761327902060,0.793,3898.4,3898.3,1.02509]
[1761327902261,0.793,3898.4,3898.3,0.68859]
[1761327902460,0.793,3898.4,3898.3,9.75159]
[1761327903567,0.793,3898.4,3898.3,0.68859]
[1761327904066,3.3433,3899.0,3898.7,0.68853]
[1761327904067,0.793,3898.8,3898.7,0.68853]
[1761327904255,0.5587,3898.8,3898.7,0.91023]
[1761327904456,3.5727,3899.0,3898.9,0.91021]
[1761327904669,3.5727,3899.0,3898.9,1.24671]
[1761327904968,3.902,3899.0,3898.9,1.24671]
[1761327905167,3.7665,3899.0,3898.9,1.24671]
[1761327905368,3.2078,3899.0,3898.9,10.30971]
[1761327906560,0.83675676,3899.3,3899.2,0.79808]
[1761327906761,0.83675676,3899.3,3899.2,1.24668]
[1761327906962,0.50745676,3899.3,3899.2,4.45448]
[1761327907164,3.2078,3900.4,3899.2,4.45448]
[1761327907165,3.4372,3900.4,3900.0,0.3365]
[1761327907360,3.4372,3900.4,3900.3,0.7851]
[1761327907566,3.6692,3900.4,3900.3,0.7851]
[1761327908068,3.67222559,3900.4,3900.3,0.78690978]
[1761327908659,0.23242559,3900.4,3900.3,0.78690978]
[1761327909070,0.55812559,3900.4,3900.3,0.78690978]
[1761327909862,3.99792559,3900.4,3900.3,0.00180978]
[1761327910071,3.99792559,3900.4,3899.4,0.2314]
[1761327910072,0.9305,3899.5,3899.4,0.2314]
[1761327910273,0.5602,3899.5,3899.4,0.8035]
[1761327910476,0.5602,3899.9,3899.8,0.8035]
[1761327911061,0.7922,3899.9,3899.8,0.80632743]
[1761327911373,0.7922,3899.9,3899.8,0.00282743]
[1761327911672,0.3257,3899.9,3899.8,0.80632743]
[1761327911974,0.5602,3899.9,3899.8,0.80632743]
[1761327912174,0.7922,3899.9,3899.8,0.80632743]
[1761327913167,0.3257,3900.1,3899.8,0.91603743]
[1761327913471,0.23752559,3900.4,3900.3,0.81325]
[1761327913677,0.00302559,3900.4,3900.3,13.53275]
[1761327914475,0.79522559,3900.4,3900.3,12.96065]
[1761327915271,0.79522559,3900.4,3900.3,13.18095]
[1761327915471,0.79522559,3900.4,3900.3,13.53275]
[1761327919075,0.79522559,3900.4,3900.3,12.4982]
[1761327920374,0.79522559,3900.4,3900.3,13.17995]
[1761327920568,0.79522559,3900.4,3900.3,13.53175]
[1761327921278,0.56322559,3900.4,3900.3,13.53175]
[1761327922078,0.00302559,3900.4,3900.3,13.53175]
[1761327923072,0.56322559,3900.4,3900.3,13.53175]
[1761327924974,0.00302559,3900.4,3900.3,13.53175]
[1761327928481,0.56322559,3900.4,3900.3,13.53175]
[1761327929476,0.56322559,3900.4,3900.3,13.52975]
[1761327930277,0.56322559,3900.4,3900.3,4.47275]
[1761327930482,0.56322559,3900.4,3900.3,13.52975]
[1761327930781,0.79522559,3900.4,3900.3,4.47275]
[1761327930983,0.79522559,3900.4,3900.3,12.95765]
[1761327931282,0.79522559,3900.4,3900.3,13.52975]
[1761327931476,0.56322559,3900.4,3900.3,13.52975]
[1761327931878,0.00302559,3900.4,3900.3,13.52975]
[1761327934186,0.00302559,3900.4,3900.3,4.47275]
[1761327934387,0.5577,3900.3,3900.2,0.2314]
[1761327934686,0.7922,3900.3,3900.2,10.32095]
[1761327935186,0.5602,3900.3,3900.2,10.32095]
[1761327935383,0.00302559,3900.4,3900.3,1.26494]
[1761327935685,0.00302559,3900.4,3900.3,10.32094]
[1761327938881,4.12801653,3901.5,3900.3,10.1567]
[1761327939081,0.022,3902.8,3902.3,0.4309]
[1761327939285,0.4359,3903.9,3903.8,0.7735]
[1761327939582,0.4359,3903.9,3903.8,0.2173]
[1761327939783,0.4359,3903.9,3903.6,0.5599]
[1761327939986,0.43890294,3903.9,3903.6,0.0029353]
[1761327940177,0.4359,3903.7,3903.6,0.0029353]
[1761327941084,0.7614,3903.7,3903.6,0.0029353]
[1761327941485,5.7614,3903.7,3903.6,0.0029353]
[1761327941682,0.3255,3902.5,3902.4,0.68475515]
[1761327941982,0.3255,3902.0,3901.8,3.7677]
[1761327942183,0.7614,3901.9,3901.8,3.7677]
[1761327942793,0.7614,3901.9,3901.8,3.77073446]
[1761327943285,0.7614,3901.9,3901.8,0.56293446]
[1761327943488,0.7614,3901.9,3901.8,0.00303446]
[1761327947293,0.2138,3901.1,3901.0,0.68475515]
[1761327947489,0.7614,3900.9,3900.8,0.90205515]
[1761327947690,0.7614,3900.9,3900.8,0.4309]
[1761327947990,0.7614,3900.9,3900.8,0.7735]
[1761327948388,0.76361801,3900.9,3900.8,0.7755767]
[1761327948590,0.22431801,3900.9,3900.8,1.46033185]
[1761327948793,0.00221801,3900.9,3900.8,1.46033185]
[1761327949198,0.00221801,3900.9,3900.8,0.7755767]
[1761327950198,0.22431801,3900.9,3900.8,0.7755767]
[1761327950998,0.00221801,3900.9,3900.8,0.7755767]
[1761327951897,0.00221801,3900.9,3900.8,1.92171185]
[1761327952088,0.00221801,3900.9,3900.8,1.2369567]
[1761327952288,0.7614,3901.9,3901.8,0.5599]
[1761327953294,0.76451487,3901.9,3901.8,0.5599]
[1761327955303,0.00311487,3901.9,3901.8,1.23476]
[1761327957300,0.3474,3902.9,3902.7,0.4528]
[1761327957301,3.2078,3902.8,3902.7,0.4528]
[1761327957506,3.2078,3902.8,3902.7,0.7901]
[1761327957703,3.2078,3902.8,3902.7,1.25126]
[1761327957902,3.2078,3902.8,3902.7,0.7901]
[1761327958103,3.2078,3902.8,3902.7,1.25126]
[1761327958310,3.21097198,3902.8,3902.7,1.25126]
[1761327958915,0.00317198,3902.8,3902.7,1.25126]
[1761327959918,0.00317198,3902.8,3902.7,0.7901]
[1761327960118,0.00317198,3902.8,3902.7,1.25126]
[1761327960814,0.00317198,3902.8,3902.7,1.93505708]
[1761327961019,0.00317198,3902.8,3902.7,5.14285708]
[1761327962122,0.00317198,3902.8,3902.7,4.45906]
[1761327962821,0.00317198,3902.8,3902.7,13.57506]
[1761327963621,0.00317198,3902.8,3902.7,14.25885708]
[1761327964313,0.00317198,3902.8,3902.7,13.57506]
[1761327964514,0.7953,3903.9,3903.8,0.7901]
[1761327965420,0.79859523,3903.9,3903.8,0.79291862]
[1761327967517,0.00329523,3903.9,3903.8,10.36294862]
[1761327968127,0.77509523,3903.9,3903.8,1.25394862]
[1761327968319,0.77509523,3903.9,3903.8,0.55851862]
[1761327969023,0.77509523,3903.9,3903.8,0.77961862]
[1761327970126,0.45659523,3903.9,3903.8,0.77961862]
[1761327970519,0.77509523,3903.9,3903.8,0.77961862]
[1761327972523,0.22599523,3903.9,3903.8,0.77961862]
[1761327972917,0.22599523,3903.9,3903.8,1.24064862]
[1761327972918,0.00329523,3903.9,3903.8,1.24064862]
[1761327973724,0.77509523,3903.9,3903.8,9.66951862]
[1761327974420,0.77509523,3903.9,3903.8,9.89061862]
[1761327976027,0.77509523,3903.9,3903.8,0.77961862]
[1761327976530,0.00329523,3903.9,3903.8,1.24064862]
[1761327978328,0.22599523,3903.9,3903.8,10.34764862]
[1761327978631,0.77509523,3903.9,3903.8,9.88661862]
[1761327979432,0.77509523,3903.9,3903.8,10.34764862]
[1761327979634,0.22599523,3903.9,3903.8,10.34764862]
[1761327980520,0.77509523,3903.9,3903.8,0.00281862]
[1761327980728,0.3185,3903.1,3902.8,0.3384]
[1761327980932,0.7718,3902.9,3902.8,0.4551]
[1761327981430,0.7718,3902.9,3902.8,0.7935]
[1761327981828,0.7718,3902.9,3902.8,0.79654811]
[1761327982324,0.4533,3903.2,3903.1,0.7935]
[1761327982528,0.00329523,3903.9,3903.0,0.1399]
[1761327982529,0.5412,3903.4,3903.3,0.2211]
[1761327982729,0.7718,3903.4,3903.3,0.7935]
[1761327983228,0.4533,3903.7,3903.6,0.234]
[1761327983432,0.4533,3903.7,3903.6,0.7935]
[1761327983628,0.7718,3903.7,3903.6,0.7935]
[1761327983934,0.2227,3903.7,3903.6,0.7935]
[1761327985037,3.98289523,3903.9,3903.7,0.3384]
[1761327985229,3.98289523,3903.9,3903.8,0.7935]
[1761327987229,0.3185,3903.8,3903.6,0.3384]
[1761327987530,0.7718,3903.7,3903.6,1.47577379]
[1761327988035,0.2227,3903.7,3903.6,1.47577379]
[1761327988423,0.2227,3903.7,3903.6,0.7935]
[1761327988829,0.7718,3903.7,3903.6,1.47967807]
[1761327989233,0.7718,3903.7,3903.6,0.7935]
[1761327992743,0.4533,3903.7,3903.6,0.6866073]
[1761327993143,0.4533,3903.7,3903.5,0.3384]
[1761327993341,3.21109523,3903.9,3903.5,0.5724]
[1761327993342,0.7718,3903.6,3903.5,0.5724]
[1761327993537,0.9036,3903.5,3903.4,0.68692628]
[1761327993742,0.9036,3903.5,3903.4,1.25932628]
[1761327993952,0.7718,3903.5,3903.4,1.25932628]
[1761327994255,4.1114,3903.5,3903.4,0.68692628]
[1761327994437,4.1114,3903.5,3902.9,0.68692628]
[1761327994438,0.7718,3903.0,3902.9,0.68692628]
[1761327994638,0.7718,3902.9,3902.8,0.68997439]
[1761327994838,0.7718,3902.9,3902.8,0.00304811]
[1761327995636,0.7718,3902.9,3902.8,0.57544811]
[1761327995946,0.7718,3902.9,3902.8,0.79654811]
[1761327999153,0.4533,3902.9,3902.8,1.25769811]
[1761327999544,0.4533,3902.9,3902.8,0.79654811]
[1761328000161,0.4533,3902.9,3902.8,1.25769811]
[1761328000162,0.2227,3902.9,3902.8,1.25769811]
[1761328000354,0.8074,3903.2,3903.1,0.7527]
[1761328002845,0.4593,3903.2,3903.1,0.7527]
[1761328004049,0.4593,3903.2,3903.1,1.21381]
[1761328005656,0.8074,3903.2,3903.1,0.534]
[1761328005956,0.8074,3902.9,3902.8,0.00304811]
[1761328006150,4.0152,3902.9,3902.8,0.00304811]
[1761328006352,9.0152,3902.9,3902.8,0.00304811]
[1761328006555,0.3481,3902.3,3902.2,0.68692628]
[1761328006749,0.8074,3902.3,3902.2,0.68692628]
[1761328007152,0.3481,3902.2,3902.1,3.89472628]
[1761328007350,0.3481,3902.5,3902.1,5.33345944]
[1761328007553,0.5751,3902.5,3902.4,0.7527]
[1761328007856,0.3481,3902.3,3902.2,0.6867876]
[1761328008060,0.1349,3902.5,3902.1,3.89638984]
[1761328008061,0.8074,3902.2,3902.1,3.89638984]
[1761328008360,0.8074,3902.2,3902.1,0.68858984]
[1761328009153,0.8074,3902.2,3902.1,0.00180224]
[1761328009353,0.8074,3902.2,3902.1,1.22258984]
[1761328009547,0.8074,3902.2,3902.1,0.53580224]
[1761328014365,0.8074,3902.2,3902.1,0.00180224]
[1761328016166,0.227,3901.6,3901.3,0.6867876]
[1761328016373,0.1349,3902.0,3901.1,1.2207876]
[1761328016374,0.4593,3901.2,3901.1,1.2207876]
[1761328016555,0.8074,3901.2,3901.1,1.6821376]
[1761328016756,0.8074,3901.2,3901.1,1.4394876]
[1761328017364,0.8074,3901.2,3901.1,1.44214158]
[1761328018164,0.8074,3901.2,3901.1,0.75535398]
[1761328018364,0.8074,3901.2,3901.1,1.44214158]
[1761328019255,0.8074,3901.2,3901.1,0.75535398]
[1761328020264,0.8074,3901.2,3901.1,1.44214158]
[1761328020662,0.8074,3901.2,3901.1,0.00265398]
[1761328021258,4.0152,3901.2,3901.1,0.00265398]
[1761328022060,4.0152,3901.2,3901.1,0.79745398]
[1761328022268,0.7873,3901.6,3901.5,0.7948]
[1761328023374,0.7873,3901.6,3901.5,1.3973]
[1761328023577,0.4646,3901.6,3901.5,1.3973]
[1761328023878,0.4646,3901.6,3901.5,0.936]
[1761328024076,0.7873,3901.6,3901.5,0.936]
[1761328024370,0.7873,3901.6,3901.2,0.3486]
[1761328024371,0.4646,3901.6,3901.2,0.3486]
[1761328024576,0.4646,3901.4,3901.3,0.5737]
[1761328024776,0.7873,3901.4,3901.3,0.5737]
[1761328026273,0.7873,3901.4,3901.3,0.7948]
[1761328026588,0.2345,3901.7,3901.6,0.7948]
[1761328027682,0.2345,3901.7,3901.6,1.25609]
[1761328028278,0.2345,3901.7,3901.6,0.7948]
[1761328028686,0.7917,3901.7,3901.6,0.7948]
[1761328031883,0.3326,3901.6,3901.3,0.5654]
[1761328032081,0.7889,3901.4,3901.3,0.5654]
[1761328032579,0.7889,3901.2,3901.1,0.00265398]
[1761328037085,5.7889,3901.2,3901.1,0.00265398]
[1761328037385,0.7889,3900.4,3900.3,0.6867876]
[1761328037977,0.7889,3900.4,3900.0,0.68848416]
[1761328037978,0.3326,3900.3,3900.0,0.68848416]
[1761328038177,0.3326,3900.3,3898.3,1.36960254]
[1761328038178,0.7889,3899.3,3898.3,1.36960254]
[1761328038479,0.3326,3898.3,3897.8,0.2537555]
[1761328038680,0.7889,3897.9,3897.8,0.25573986]
[1761328038882,0.7889,3897.9,3897.8,0.59303986]
[1761328039576,0.7889,3897.9,3897.8,0.80983986]
[1761328041579,0.7889,3897.9,3897.8,0.02763986]
[1761328042281,0.7889,3897.9,3897.8,0.25573986]
[1761328042489,0.7889,3897.9,3897.8,0.59303986]
[1761328042680,0.4563,3897.9,3897.8,0.80983986]
[1761328043688,0.7889,3897.9,3897.8,0.80983986]
[1761328045880,0.7889,3897.9,3897.8,0.00198436]
[1761328046079,3.341,3898.0,3897.1,0.5654]
[1761328046080,0.7889,3897.2,3897.1,0.5654]
[1761328046477,0.3326,3897.1,3896.8,0.4449]
[1761328046681,0.4563,3897.0,3896.9,0.5654]
[1761328046983,0.79150186,3897.0,3896.9,0.78537606]
[1761328048879,0.92470186,3897.0,3896.9,0.00317606]
[1761328049085,0.79150186,3897.0,3896.9,0.78537606]
[1761328050386,0.79150186,3897.0,3896.9,0.23127606]
[1761328050387,0.92470186,3897.0,3896.9,0.23127606]
[1761328050590,0.92470186,3897.0,3896.9,0.00317606]
[1761328050980,0.92470186,3897.0,3896.9,0.56857606]
[1761328052491,0.92470186,3897.0,3896.9,0.23127606]
[1761328052884,0.79150186,3897.0,3896.9,0.56857606]
[1761328053084,0.00260186,3897.0,3896.9,0.78537606]
[1761328054583,0.23430186,3897.0,3896.9,0.78537606]
[1761328056183,0.00260186,3897.0,3896.9,0.78537606]
[1761328056685,0.23430186,3897.0,3896.9,0.78537606]
[1761328057289,0.79150186,3897.0,3896.9,0.78537606]
[1761328058087,0.45890186,3897.0,3896.9,0.78537606]
[1761328059094,0.80070186,3897.0,3896.9,0.78537606]
[1761328059286,0.93480186,3897.0,3896.9,0.00317606]
[1761328059488,4.14260186,3897.0,3896.9,0.00317606]
[1761328059991,4.14260186,3897.0,3896.9,0.57867606]
[1761328060391,4.14260186,3897.0,3896.9,0.00317606]
[1761328061188,4.14260186,3897.0,3896.9,0.22957606]
[1761328061388,4.14260186,3897.0,3896.9,0.57867606]
[1761328062102,4.14260186,3897.0,3896.9,0.00317606]
[1761328062392,4.14260186,3897.0,3896.0,0.1321]
[1761328062393,0.3418,3896.3,3896.0,0.5755]
[1761328062694,0.7861,3896.1,3896.0,0.5827]
[1761328062897,3.9939,3896.8,3896.7,0.2264]
[1761328063086,0.22610186,3897.0,3896.8,0.3491]
[1761328063287,0.22610186,3897.0,3896.7,0.91187]
[1761328063288,0.00260186,3897.0,3896.9,0.7991]
[1761328063499,0.22610186,3897.0,3896.9,0.7991]
[1761328064697,0.78870186,3897.0,3896.9,0.7991]
[1761328065497,0.92280186,3897.0,3896.9,0.2264]
[1761328066200,0.92280186,3897.0,3896.9,0.5755]
[1761328066402,0.78870186,3897.0,3896.9,0.5755]
[1761328066699,0.44690186,3897.0,3896.9,0.7991]
[1761328067286,0.78870186,3897.0,3896.9,0.7991]
[1761328067599,0.78870186,3897.0,3896.9,0.5755]
[1761328067992,0.7861,3896.8,3896.7,0.57756475]
[1761328068302,0.7861,3896.8,3896.7,0.80116475]
[1761328068891,0.7861,3896.8,3896.2,1.36960254]
[1761328068892,0.3418,3896.7,3896.2,1.36960254]
[1761328069093,8.2078,3896.8,3895.3,1.82729335]
[1761328069094,0.7861,3895.4,3895.3,1.82729335]
[1761328069292,0.7861,3895.4,3894.8,2.28411669]
[1761328069293,0.4443,3894.7,3894.6,0.3491]
[1761328069594,0.7861,3894.7,3894.6,0.5755]
[1761328069801,1.02244376,3894.7,3894.6,0.80105646]